bitfinex-derivatives/quotes_SOLF0:USTF0_20260116
["timestamp","ask_amount","ask_price","bid_price","bid_amount"]
[1768548789175,5.27326107,142.84,142.8,25.81648656]
[1768548789375,1.598305,142.86,142.8,25.81648656]
[1768548789577,10.67234376,142.85,142.8,25.81648656]
[1768548789878,5.27417757,142.84,142.8,25.81648656]
[1768548790079,1.598305,142.86,142.8,25.81648656]
[1768548790279,10.67231466,142.85,142.8,25.81648656]
[1768548790480,5.27417641,142.84,142.8,25.81648656]
[1768548790669,1.598305,142.86,142.8,25.81648656]
[1768548790871,10.67412279,142.85,142.8,25.81648656]
[1768548791075,5.2753074,142.84,142.8,25.81648656]
[1768548791275,1.598305,142.86,142.8,25.81648656]
[1768548791480,10.6750737,142.85,142.8,25.81648656]
[1768548791680,5.27533851,142.84,142.8,25.81648656]
[1768548791882,1.598305,142.86,142.8,25.81648656]
[1768548792084,10.6750791,142.85,142.8,25.81648656]
[1768548792377,10.67511684,142.84,142.8,25.81648656]
[1768548792578,1.598305,142.86,142.8,25.81648656]
[1768548792781,10.6762113,142.85,142.8,25.81648656]
[1768548792981,10.6762113,142.84,142.8,25.81648656]
[1768548793184,5.27575541,142.83,142.8,25.81648656]
[1768548793384,1.598305,142.86,142.8,25.81648656]
[1768548793682,10.67704966,142.85,142.8,25.81648656]
[1768548793884,10.67704966,142.84,142.8,25.81648656]
[1768548794182,5.27578178,142.83,142.8,25.81648656]
[1768548794483,1.598305,142.86,142.8,25.81648656]
[1768548794685,10.67807381,142.85,142.8,25.81648656]
[1768548794880,10.67807381,142.84,142.8,25.81648656]
[1768548795178,5.27628926,142.83,142.8,25.81648656]
[1768548795379,28.48327538,142.86,142.8,25.81648656]
[1768548795580,10.67933487,142.85,142.8,25.81648656]
[1768548795783,10.67933487,142.84,142.8,25.81648656]
[1768548796087,5.27692824,142.83,142.8,25.81648656]
[1768548796283,28.48327538,142.86,142.8,25.81648656]
[1768548796491,10.67948608,142.85,142.8,25.81648656]
[1768548796675,10.67948608,142.84,142.8,25.81648656]
[1768548796880,5.27699794,142.83,142.8,25.81648656]
[1768548797177,28.48327538,142.86,142.8,25.81648656]
[1768548797377,10.67949613,142.85,142.8,25.81648656]
[1768548797578,10.67949613,142.84,142.8,25.81648656]
[1768548797780,5.27700296,142.83,142.8,25.81648656]
[1768548797983,28.48327538,142.86,142.8,25.81648656]
[1768548798186,10.67949613,142.85,142.8,25.81648656]
[1768548798386,10.67949613,142.84,142.8,25.81648656]
[1768548798685,5.27700296,142.83,142.8,25.81648656]
[1768548798983,28.48327538,142.86,142.8,25.81648656]
[1768548799182,10.67961373,142.85,142.8,25.81648656]
[1768548799384,10.67961373,142.84,142.8,25.81648656]
[1768548799582,5.2770611,142.83,142.8,25.81648656]
[1768548799778,28.48327538,142.86,142.8,25.81648656]
[1768548799982,10.67967647,142.85,142.8,25.81648656]
[1768548800186,10.67967647,142.84,142.8,25.81648656]
[1768548800486,5.27709216,142.83,142.8,25.81648656]
[1768548800692,28.48327538,142.86,142.8,25.81648656]
[1768548800893,10.67946591,142.85,142.8,25.81648656]
[1768548801183,10.67946591,142.84,142.8,25.81648656]
[1768548801381,5.27698981,142.83,142.8,25.81648656]
[1768548801582,28.48327538,142.86,142.8,25.81648656]
[1768548801783,10.67942103,142.85,142.8,25.81648656]
[1768548801983,10.67942103,142.84,142.8,25.81648656]
[1768548802182,5.27696607,142.83,142.8,25.81648656]
[1768548802377,28.48327538,142.86,142.8,25.81648656]
[1768548802577,10.67978103,142.85,142.8,25.81648656]
[1768548802778,10.67978103,142.84,142.8,25.81648656]
[1768548802979,5.27714361,142.83,142.8,25.81648656]
[1768548803178,28.48327538,142.86,142.8,25.81648656]
[1768548803479,10.6802101,142.85,142.8,25.81648656]
[1768548803677,10.6802101,142.84,142.8,25.81648656]
[1768548803886,5.27735494,142.83,142.8,25.81648656]
[1768548804079,28.48327538,142.86,142.8,25.81648656]
[1768548804281,10.6802391,142.85,142.8,25.81648656]
[1768548804481,10.6802391,142.84,142.8,25.81648656]
[1768548804780,5.27736792,142.83,142.8,25.81648656]
[1768548804980,28.48327538,142.86,142.8,25.81648656]
[1768548805182,10.68031944,142.85,142.8,25.81648656]
[1768548805380,10.68031944,142.84,142.8,25.81648656]
[1768548805588,5.27740821,142.83,142.8,25.81648656]
[1768548805788,28.48327538,142.86,142.8,25.81648656]
[1768548805991,10.68029815,142.85,142.8,25.81648656]
[1768548806288,10.68029815,142.84,142.8,25.81648656]
[1768548806490,5.27739849,142.83,142.8,25.81648656]
[1768548806690,28.48327538,142.86,142.8,25.81648656]
[1768548806987,10.6802506,142.85,142.8,25.81648656]
[1768548807189,10.6802506,142.84,142.8,25.81648656]
[1768548807392,5.27737601,142.83,142.8,25.81648656]
[1768548807586,28.48327538,142.86,142.8,25.81648656]
[1768548807781,10.68023266,142.85,142.8,25.81648656]
[1768548808079,10.68023266,142.84,142.8,25.81648656]
[1768548808274,5.27736728,142.83,142.8,25.81648656]
[1768548808581,28.48327538,142.86,142.8,25.81648656]
[1768548808779,10.68021389,142.85,142.8,25.81648656]
[1768548808986,10.68021389,142.84,142.8,25.81648656]
[1768548809185,5.27735816,142.83,142.8,25.81648656]
[1768548809386,28.48327538,142.86,142.8,25.81648656]
[1768548809588,10.68019554,142.85,142.8,32.12098656]
[1768548809782,27.69243167,142.88,142.8,32.12098656]
[1768548811787,27.69243167,142.88,142.82,26.74650547]
[1768548812894,27.69243167,142.88,142.82,33.05010547]
[1768548816994,1.598305,142.87,142.82,33.05010547]
[1768548820990,26.09412667,142.88,142.82,33.05010547]
[1768548821189,27.69243167,142.88,142.82,33.05010547]
[1768548821799,10.55180627,142.87,142.82,33.05010547]
[1768548821994,10.55180627,142.86,142.82,33.05010547]
[1768548822195,27.69243167,142.88,142.82,33.05010547]
[1768548822396,10.5514008,142.87,142.82,33.05010547]
[1768548822698,10.5514008,142.86,142.82,33.05010547]
[1768548822995,27.69243167,142.88,142.82,33.05010547]
[1768548823294,10.5514008,142.87,142.82,33.05010547]
[1768548823493,10.5514008,142.86,142.82,33.05010547]
[1768548823695,27.69243167,142.88,142.82,33.05010547]
[1768548823896,10.5510426,142.87,142.82,33.05010547]
[1768548824096,10.5510426,142.86,142.82,33.05010547]
[1768548824304,27.69243167,142.88,142.82,33.05010547]
[1768548824494,10.55072799,142.87,142.82,33.05010547]
[1768548824794,10.55072799,142.86,142.82,33.05010547]
[1768548824994,27.69243167,142.88,142.82,33.05010547]
[1768548825197,10.55072799,142.87,142.82,33.05010547]
[1768548825393,10.55072799,142.86,142.82,33.05010547]
[1768548825693,27.69243167,142.88,142.82,33.05010547]
[1768548825993,10.55053991,142.87,142.82,33.05010547]
[1768548826194,10.55053991,142.86,142.82,33.05010547]
[1768548826394,27.69243167,142.88,142.82,33.05010547]
[1768548826693,10.54991688,142.87,142.82,33.05010547]
[1768548826890,10.54991688,142.86,142.82,33.05010547]
[1768548827095,27.69243167,142.88,142.82,33.05010547]
[1768548827405,1.367e-05,142.87,142.84,26.74650547]
[1768548827602,1.598305,142.89,142.84,26.74650547]
[1768548827801,1.598305,142.91,142.84,26.74650547]
[1768548828902,1.598305,142.91,142.85,6.3023]
[1768548829305,1.598305,142.91,142.85,33.04880547]
[1768548834299,26.09412667,142.92,142.85,33.04880547]
[1768548834601,1.598305,142.91,142.85,33.04880547]
[1768548839314,1.59708401,142.91,142.85,33.04880547]
[1768548840912,5.103959,142.9,142.85,33.04880547]
[1768548841107,1.59708401,142.91,142.85,33.04880547]
[1768548842215,1.59708401,142.91,142.85,26.74650547]
[1768548842414,5.10413476,142.9,142.85,26.74650547]
[1768548842705,28.82168981,142.91,142.85,26.74650547]
[1768548842913,5.1039476,142.9,142.85,26.74650547]
[1768548843113,28.82168981,142.91,142.85,26.74650547]
[1768548843313,5.10391021,142.9,142.85,26.74650547]
[1768548843510,28.82168981,142.91,142.85,26.74650547]
[1768548843710,5.10394925,142.9,142.85,26.74650547]
[1768548844014,28.82168981,142.91,142.85,26.74650547]
[1768548844313,5.10400927,142.9,142.85,26.74650547]
[1768548844513,28.82168981,142.91,142.85,26.74650547]
[1768548844815,5.10463985,142.9,142.85,26.74650547]
[1768548845011,28.82168981,142.91,142.85,26.74650547]
[1768548845213,5.10457804,142.9,142.85,26.74650547]
[1768548845416,28.82168981,142.91,142.85,26.74650547]
[1768548845613,5.10466398,142.9,142.85,26.74650547]
[1768548845803,28.82168981,142.91,142.85,26.74650547]
[1768548846008,5.10466398,142.9,142.85,26.74650547]
[1768548846208,28.82168981,142.91,142.85,26.74650547]
[1768548846408,5.10481017,142.9,142.85,26.74650547]
[1768548846609,28.82168981,142.91,142.85,26.74650547]
[1768548846812,5.10480145,142.9,142.85,26.74650547]
[1768548847015,28.82168981,142.91,142.85,26.74650547]
[1768548847212,5.10480145,142.9,142.85,26.74650547]
[1768548847412,28.82168981,142.91,142.85,26.74650547]
[1768548847614,5.10505394,142.9,142.85,26.74650547]
[1768548847816,28.82168981,142.91,142.85,26.74650547]
[1768548848119,5.10505394,142.9,142.85,26.74650547]
[1768548848308,28.82168981,142.91,142.85,26.74650547]
[1768548848509,5.10530761,142.9,142.85,26.74650547]
[1768548848709,28.82168981,142.91,142.85,26.74650547]
[1768548848918,5.0671235,142.9,142.85,26.74650547]
[1768548849116,28.82168981,142.91,142.85,26.74650547]
[1768548849315,5.06752017,142.9,142.85,26.74650547]
[1768548849617,33.5237058,142.93,142.85,26.74650547]
[1768548849618,27.2246058,142.93,142.85,26.74650547]
[1768548849918,10.38373816,142.92,142.85,26.74650547]
[1768548850119,27.2246058,142.93,142.85,26.74650547]
[1768548850320,10.38251192,142.92,142.85,26.74650547]
[1768548850520,27.2246058,142.93,142.85,26.74650547]
[1768548850722,10.3827863,142.92,142.85,26.74650547]
[1768548850921,27.2246058,142.93,142.85,33.04880547]
[1768548851220,10.3828907,142.92,142.85,33.04880547]
[1768548851422,27.2246058,142.93,142.85,33.04880547]
[1768548851617,10.38279705,142.92,142.85,33.04880547]
[1768548851817,27.2246058,142.93,142.85,33.04880547]
[1768548852023,10.38271829,142.92,142.85,33.04880547]
[1768548852222,27.2246058,142.93,142.85,33.04880547]
[1768548852419,10.3829485,142.92,142.85,33.04880547]
[1768548852618,27.2246058,142.93,142.85,33.04880547]
[1768548852828,10.38295542,142.92,142.85,33.04880547]
[1768548853030,27.2246058,142.93,142.85,33.04880547]
[1768548853232,10.38271719,142.92,142.85,33.04880547]
[1768548853430,27.2246058,142.93,142.85,33.04880547]
[1768548853626,27.2246058,142.91,142.85,26.74650547]
[1768548855030,28.82168981,142.91,142.85,26.74650547]
[1768548855438,27.2246058,142.91,142.85,26.74650547]
[1768548862741,10.38776606,142.9,142.85,26.74650547]
[1768548863041,27.2246058,142.91,142.85,26.74650547]
[1768548863240,5.06793621,142.9,142.85,26.74650547]
[1768548863538,27.2246058,142.91,142.85,26.74650547]
[1768548863737,5.06846352,142.9,142.85,26.74650547]
[1768548863935,27.2246058,142.91,142.85,26.74650547]
[1768548864141,5.06846352,142.9,142.85,26.74650547]
[1768548864336,27.2246058,142.91,142.85,26.74650547]
[1768548865040,28.82168981,142.91,142.85,26.74650547]
[1768548869542,29.08012801,142.93,142.85,33.04880547]
[1768548869845,10.39854935,142.92,142.85,26.74650547]
[1768548870042,10.39854935,142.91,142.85,26.74650547]
[1768548870241,29.08012801,142.93,142.85,26.74650547]
[1768548870439,10.40094681,142.92,142.85,26.74650547]
[1768548870636,10.40094681,142.91,142.85,26.74650547]
[1768548870836,29.08012801,142.93,142.87,26.64160642]
[1768548871037,10.40094681,142.92,142.87,26.64160642]
[1768548871239,10.40094681,142.91,142.87,26.64160642]
[1768548871441,29.08012801,142.93,142.87,26.64160642]
[1768548871641,10.40405389,142.92,142.87,26.64160642]
[1768548871944,10.40405389,142.91,142.87,26.64160642]
[1768548872244,29.08012801,142.93,142.87,26.64160642]
[1768548872446,10.41039175,142.92,142.87,26.64160642]
[1768548872646,10.41039175,142.91,142.87,26.64160642]
[1768548872838,29.08012801,142.93,142.87,26.64160642]
[1768548873040,10.41057394,142.92,142.87,26.64160642]
[1768548873242,10.41057394,142.91,142.87,26.64160642]
[1768548873440,29.08012801,142.93,142.87,26.64160642]
[1768548873640,10.40987774,142.92,142.87,26.64160642]
[1768548873941,10.40987774,142.91,142.87,26.64160642]
[1768548874145,29.08012801,142.93,142.87,26.64160642]
[1768548874334,10.40928278,142.92,142.87,26.64160642]
[1768548874538,10.40928278,142.91,142.87,26.64160642]
[1768548874838,29.08012801,142.93,142.87,26.64160642]
[1768548875042,10.40928278,142.92,142.87,32.94270642]
[1768548875343,29.08012801,142.94,142.87,32.94270642]
[1768548875543,10.40827935,142.93,142.87,32.94270642]
[1768548875747,10.40827935,142.92,142.87,32.94270642]
[1768548875937,29.08012801,142.94,142.87,32.94270642]
[1768548876138,10.40827587,142.93,142.87,32.94270642]
[1768548876338,10.40827587,142.92,142.87,32.94270642]
[1768548876542,29.08012801,142.94,142.87,32.94270642]
[1768548876743,10.40803955,142.93,142.87,32.94270642]
[1768548876943,10.40803955,142.92,142.87,32.94270642]
[1768548877142,29.08012801,142.94,142.87,32.94270642]
[1768548877342,10.40726229,142.93,142.87,32.94270642]
[1768548877548,10.40726229,142.92,142.87,32.94270642]
[1768548877846,29.08012801,142.94,142.87,32.94270642]
[1768548878047,37.89204953,142.93,142.87,26.64160642]
[1768548878241,10.40900553,142.92,142.87,26.64160642]
[1768548878441,27.483044,142.93,142.87,26.64160642]
[1768548878641,10.4037019,142.92,142.87,26.64160642]
[1768548878845,27.483044,142.93,142.87,26.64160642]
[1768548879037,10.40129909,142.92,142.87,26.64160642]
[1768548879241,1.59708401,142.92,142.87,26.64160642]
[1768548884352,29.08012801,142.93,142.87,26.64160642]
[1768548884551,10.39813189,142.92,142.87,26.64160642]
[1768548884750,29.08012801,142.93,142.87,26.64160642]
[1768548884949,10.39813189,142.92,142.87,26.64160642]
[1768548885150,29.08012801,142.93,142.87,26.64160642]
[1768548885350,10.39777263,142.92,142.87,26.64160642]
[1768548885552,29.08012801,142.93,142.87,26.64160642]
[1768548885752,10.39777263,142.92,142.87,26.64160642]
[1768548885954,1.59708401,142.91,142.87,26.64160642]
[1768548888255,5.07444284,142.9,142.85,26.64160642]
[1768548888553,29.08012801,142.91,142.85,26.64160642]
[1768548888753,5.07444265,142.9,142.85,26.64160642]
[1768548888949,29.08012801,142.91,142.85,26.64160642]
[1768548889953,5.07482118,142.9,142.85,26.64160642]
[1768548890257,29.08012801,142.91,142.85,26.64160642]
[1768548890758,5.07579292,142.9,142.85,26.64160642]
[1768548890956,29.08012801,142.91,142.85,26.64160642]
[1768548891157,5.07576518,142.9,142.85,26.64160642]
[1768548891353,29.08012801,142.91,142.85,26.64160642]
[1768548892157,5.07686119,142.9,142.85,26.64160642]
[1768548892360,29.08012801,142.91,142.85,26.64160642]
[1768548892655,5.07686982,142.9,142.85,26.64160642]
[1768548892857,29.08012801,142.91,142.85,26.64160642]
[1768548893060,5.07687081,142.9,142.85,26.64160642]
[1768548893360,29.08012801,142.91,142.85,26.64160642]
[1768548893657,5.07729371,142.9,142.85,26.64160642]
[1768548893859,29.08012801,142.91,142.85,26.64160642]
[1768548894061,5.07724273,142.9,142.85,26.64160642]
[1768548894262,29.08012801,142.91,142.85,26.64160642]
[1768548894559,5.07770739,142.9,142.85,26.64160642]
[1768548894748,6.2987,142.94,142.85,32.94390642]
[1768548894954,10.40559699,142.93,142.85,32.94390642]
[1768548895147,10.40559699,142.92,142.85,32.94390642]
[1768548895454,5.0777217,142.91,142.85,32.94390642]
[1768548895654,28.59364713,142.94,142.85,32.94390642]
[1768548895856,10.40735423,142.93,142.85,32.94390642]
[1768548896055,10.40735423,142.92,142.85,32.94390642]
[1768548896254,28.59364713,142.94,142.85,32.94390642]
[1768548896456,10.4070709,142.93,142.85,32.94390642]
[1768548896656,10.4070709,142.92,142.85,32.94390642]
[1768548896857,5.07834741,142.91,142.85,32.94390642]
[1768548897052,28.59364713,142.94,142.85,32.94390642]
[1768548897260,10.40701555,142.93,142.85,32.94390642]
[1768548897461,10.40701555,142.92,142.85,32.94390642]
[1768548897761,28.59364713,142.94,142.85,32.94390642]
[1768548898061,10.40680154,142.93,142.85,32.94390642]
[1768548898263,10.40680154,142.92,142.85,32.94390642]
[1768548898455,28.59364713,142.94,142.85,32.94390642]
[1768548898655,10.40619206,142.93,142.85,32.94390642]
[1768548898855,10.40619206,142.92,142.85,32.94390642]
[1768548899060,5.07783278,142.91,142.85,32.94390642]
[1768548899260,28.59364713,142.94,142.85,32.94390642]
[1768548899461,12.00275419,142.93,142.85,32.94390642]
[1768548899657,10.40608351,142.92,142.85,32.94390642]
[1768548899860,1.59667068,142.93,142.85,32.94390642]
[1768548900062,10.40676448,142.92,142.85,32.94390642]
[1768548900254,1.59667068,142.93,142.85,32.94390642]
[1768548900451,10.40680827,142.92,142.85,32.94390642]
[1768548900759,28.5932338,142.93,142.85,32.94390642]
[1768548900958,10.4068078,142.92,142.85,32.94390642]
[1768548901259,28.5932338,142.93,142.85,32.94390642]
[1768548901459,10.40683245,142.92,142.85,32.94390642]
[1768548901660,28.5932338,142.93,142.85,32.94390642]
[1768548901860,10.40681686,142.92,142.85,32.94390642]
[1768548902051,28.5932338,142.93,142.85,32.94390642]
[1768548902257,10.4068372,142.92,142.85,32.94390642]
[1768548902459,5.07816002,142.91,142.85,32.94390642]
[1768548902659,6.6748307,142.91,142.85,32.94390642]
[1768548902862,1.59667068,142.91,142.85,32.94390642]
[1768548910972,1.59667068,142.91,142.85,26.64160642]
[1768548910973,28.5932338,142.91,142.85,26.64160642]
[1768548911165,5.08045617,142.9,142.85,26.64160642]
[1768548911365,28.5932338,142.91,142.85,26.64160642]
[1768548911674,5.0805104,142.9,142.85,26.64160642]
[1768548911874,28.5932338,142.91,142.85,26.64160642]
[1768548912065,5.08051027,142.9,142.85,26.64160642]
[1768548912262,28.5932338,142.91,142.85,26.64160642]
[1768548912462,5.08055776,142.9,142.85,26.64160642]
[1768548912761,28.5932338,142.91,142.85,26.64160642]
[1768548912965,5.08093479,142.9,142.85,26.64160642]
[1768548913161,28.5932338,142.91,142.85,26.64160642]
[1768548913361,5.0809987,142.9,142.85,26.64160642]
[1768548913576,28.5932338,142.91,142.85,26.64160642]
[1768548913767,10.41424156,142.9,142.85,26.64160642]
[1768548913968,28.5932338,142.91,142.85,26.64160642]
[1768548914167,5.08096454,142.9,142.85,26.64160642]
[1768548914365,28.5932338,142.91,142.85,26.64160642]
[1768548914569,5.08102457,142.9,142.85,26.64160642]
[1768548914770,28.5932338,142.91,142.85,26.64160642]
[1768548914971,5.08102457,142.9,142.85,26.64160642]
[1768548915272,28.5932338,142.91,142.85,26.64160642]
[1768548915472,5.08096007,142.9,142.85,26.64160642]
[1768548915668,28.5932338,142.91,142.85,26.64160642]
[1768548915874,5.08096007,142.9,142.85,26.64160642]
[1768548916076,28.5932338,142.91,142.85,26.64160642]
[1768548916277,5.08091334,142.9,142.85,26.64160642]
[1768548916473,28.5932338,142.91,142.85,26.64160642]
[1768548916672,5.0809027,142.9,142.85,26.64160642]
[1768548916873,28.5932338,142.91,142.85,26.64160642]
[1768548917078,5.08000857,142.9,142.85,26.64160642]
[1768548917275,28.5932338,142.91,142.85,26.64160642]
[1768548917476,5.07857309,142.9,142.85,26.64160642]
[1768548917678,28.5932338,142.91,142.85,26.64160642]
[1768548917977,5.07857941,142.9,142.85,26.64160642]
[1768548918177,26.99656312,142.91,142.85,26.64160642]
[1768548918373,5.07851285,142.9,142.85,26.64160642]
[1768548918579,1.59667068,142.9,142.85,26.64160642]
[1768548932890,26.99656312,142.91,142.85,26.64160642]
[1768548933185,10.41092858,142.9,142.85,26.64160642]
[1768548933389,28.5932338,142.91,142.85,26.64160642]
[1768548933591,10.41046007,142.9,142.85,26.64160642]
[1768548933790,28.5932338,142.91,142.85,26.64160642]
[1768548933990,10.41041501,142.9,142.85,26.64160642]
[1768548934192,28.5932338,142.91,142.85,26.64160642]
[1768548934391,10.41040555,142.9,142.85,26.64160642]
[1768548934589,28.5932338,142.91,142.85,26.64160642]
[1768548934791,26.81904813,142.89,142.83,24.67703507]
[1768548934993,1.59667068,142.87,142.83,24.67703507]
[1768548948002,33.12094813,142.87,142.77,25.3057]
[1768548948213,33.12094813,142.87,142.77,6.3057]
[1768548949905,33.12094813,142.87,142.78,24.67703507]
[1768548951608,1.59667068,142.85,142.78,24.67703507]
[1768548953308,27.00603573,142.85,142.78,24.67703507]
[1768548961316,1.59876411,142.84,142.78,24.67703507]
[1768548961815,1.59876411,142.84,142.78,30.98243507]
[1768548963121,1.59876411,142.84,142.79,25.73420994]
[1768548981639,27.08554531,142.84,142.79,25.73420994]
[1768548984751,1.59876411,142.84,142.79,25.73420994]
[1768548987149,33.38764531,142.86,142.79,25.73420994]
[1768548987349,10.37636158,142.85,142.79,25.73420994]
[1768548987537,10.37636158,142.84,142.79,25.73420994]
[1768548987743,33.38764531,142.86,142.79,25.73420994]
[1768548988042,10.37642083,142.85,142.79,25.73420994]
[1768548988340,10.37642083,142.84,142.79,25.73420994]
[1768548988540,33.38764531,142.86,142.79,25.73420994]
[1768548988748,5.33480417,142.85,142.79,25.73420994]
[1768548988945,5.33480417,142.84,142.79,25.73420994]
[1768548989142,33.38764531,142.86,142.79,25.73420994]
[1768548989346,5.33529646,142.85,142.79,32.03920994]
[1768548989645,27.08554531,142.86,142.79,32.03920994]
[1768548989646,5.33529646,142.84,142.79,32.03920994]
[1768548989843,27.08554531,142.86,142.79,32.03920994]
[1768548990048,5.33512622,142.85,142.79,32.03920994]
[1768548990244,5.33512622,142.84,142.79,32.03920994]
[1768548990445,27.08554531,142.86,142.79,32.03920994]
[1768548990645,10.37889206,142.85,142.79,32.03920994]
[1768548990844,10.37889206,142.84,142.79,32.03920994]
[1768548991045,27.08554531,142.86,142.79,32.03920994]
[1768548991245,10.37917191,142.85,142.79,32.03920994]
[1768548991445,10.37917191,142.84,142.79,32.03920994]
[1768548991651,27.08554531,142.86,142.79,32.03920994]
[1768548991852,10.38000758,142.85,142.79,32.03920994]
[1768548992054,10.38000758,142.84,142.79,32.03920994]
[1768548992253,27.08554531,142.86,142.79,32.03920994]
[1768548992553,10.38088427,142.85,142.79,32.03920994]
[1768548992754,10.38088427,142.84,142.79,32.03920994]
[1768548992956,27.08554531,142.86,142.79,32.03920994]
[1768548993150,10.38169161,142.85,142.79,32.03920994]
[1768548993350,10.38169161,142.84,142.79,32.03920994]
[1768548993543,27.08554531,142.86,142.79,32.03920994]
[1768548993748,10.38187169,142.85,142.79,32.03920994]
[1768548993948,10.38187169,142.84,142.79,32.03920994]
[1768548994156,27.08554531,142.86,142.79,32.03920994]
[1768548994358,27.08554531,142.86,142.81,24.86285227]
[1768548994359,10.3818289,142.85,142.81,24.86285227]
[1768548994654,10.3818289,142.84,142.81,24.86285227]
[1768548994850,25.4867812,142.86,142.81,24.86285227]
[1768548995052,10.3820977,142.85,142.81,24.86285227]
[1768548995252,25.4867812,142.86,142.81,24.86285227]
[1768548995452,10.38236881,142.85,142.81,24.86285227]
[1768548995652,25.4867812,142.86,142.81,24.86285227]
[1768548995852,10.38262749,142.85,142.81,24.86285227]
[1768548996055,25.4867812,142.86,142.81,24.86285227]
[1768548996358,10.38262746,142.85,142.81,24.86285227]
[1768548996560,25.4867812,142.86,142.81,24.86285227]
[1768548996761,10.38318756,142.85,142.81,24.86285227]
[1768548996964,25.4867812,142.86,142.81,24.86285227]
[1768548997161,10.38308316,142.85,142.81,24.86285227]
[1768548997362,25.4867812,142.86,142.81,24.86285227]
[1768548997562,10.38354532,142.85,142.81,24.86285227]
[1768548997751,25.4867812,142.86,142.81,24.86285227]
[1768548997957,10.38354532,142.85,142.81,24.86285227]
[1768548998159,25.4867812,142.86,142.81,24.86285227]
[1768548998357,10.38353773,142.85,142.81,24.86285227]
[1768548998563,25.4867812,142.86,142.81,24.86285227]
[1768548998757,10.37331453,142.85,142.81,24.86285227]
[1768548998960,25.4867812,142.86,142.81,24.86285227]
[1768548999165,10.35710542,142.85,142.81,24.86285227]
[1768548999366,25.4867812,142.86,142.81,24.86285227]
[1768548999667,10.35726235,142.85,142.81,24.86285227]
[1768548999864,25.4867812,142.86,142.81,24.86285227]
[1768549000067,10.35726235,142.85,142.81,24.86285227]
[1768549000256,10.35726235,142.84,142.81,24.86285227]
[1768549000459,25.4867812,142.86,142.81,24.86285227]
[1768549000757,10.35751671,142.85,142.81,24.86285227]
[1768549000957,10.35751671,142.84,142.81,24.86285227]
[1768549001154,25.4867812,142.86,142.81,24.86285227]
[1768549001357,10.35752413,142.85,142.81,31.16695227]
[1768549001558,1.59876411,142.87,142.82,24.86285227]
[1768549001760,5.32831229,142.86,142.82,24.86285227]
[1768549002058,5.32831229,142.85,142.82,24.86285227]
[1768549002254,27.71346063,142.87,142.82,24.86285227]
[1768549002458,5.32837271,142.86,142.82,24.86285227]
[1768549002657,5.32837271,142.85,142.82,24.86285227]
[1768549002857,27.71346063,142.87,142.82,24.86285227]
[1768549003168,5.32837271,142.86,142.82,24.86285227]
[1768549003465,5.32837271,142.85,142.82,24.86285227]
[1768549003764,27.71346063,142.87,142.82,24.86285227]
[1768549003965,5.32843652,142.86,142.82,24.86285227]
[1768549004160,5.32843652,142.85,142.82,24.86285227]
[1768549004362,27.71346063,142.87,142.82,24.86285227]
[1768549004564,5.3284967,142.86,142.82,24.86285227]
[1768549004763,5.3284967,142.85,142.82,24.86285227]
[1768549004963,27.71346063,142.87,142.82,24.86285227]
[1768549005168,5.32983123,142.86,142.82,24.86285227]
[1768549005357,5.32983123,142.85,142.82,24.86285227]
[1768549005561,27.71346063,142.87,142.82,24.86285227]
[1768549005768,5.33013948,142.86,142.82,24.86285227]
[1768549006064,5.33013948,142.85,142.82,24.86285227]
[1768549006265,27.71346063,142.87,142.82,24.86285227]
[1768549006469,5.33069699,142.86,142.82,24.86285227]
[1768549006767,9.699e-05,142.85,142.82,24.86285227]
[1768549006968,27.71346063,142.87,142.82,24.86285227]
[1768549007468,27.71346063,142.87,142.82,31.16635227]
[1768549009974,27.71346063,142.87,142.79,98.0771]
[1768549009975,27.71346063,142.85,142.79,24.86285227]
[1768549011275,1.59876411,142.83,142.79,24.86285227]
[1768549011678,26.3818428,142.83,142.77,24.58194533]
[1768549013573,4.96257734,142.82,142.77,24.58194533]
[1768549013878,26.3818428,142.83,142.77,24.58194533]
[1768549014176,4.96257734,142.82,142.77,24.58194533]
[1768549014376,26.3818428,142.83,142.77,24.58194533]
[1768549014576,4.96167662,142.82,142.77,24.58194533]
[1768549014777,26.3818428,142.83,142.77,24.58194533]
[1768549014977,4.96167662,142.82,142.77,24.58194533]
[1768549015174,26.3818428,142.83,142.77,24.58194533]
[1768549015380,4.96167662,142.82,142.77,24.58194533]
[1768549015578,26.3818428,142.83,142.77,24.58194533]
[1768549015779,4.96091736,142.82,142.77,24.58194533]
[1768549016077,26.3818428,142.83,142.77,24.58194533]
[1768549016273,4.96091736,142.82,142.77,24.58194533]
[1768549016474,26.3818428,142.83,142.77,24.58194533]
[1768549016674,4.96027013,142.82,142.77,24.58194533]
[1768549016879,26.3818428,142.83,142.77,24.58194533]
[1768549017079,4.96054191,142.82,142.77,24.58194533]
[1768549017278,26.3818428,142.83,142.77,24.58194533]
[1768549017578,4.95999086,142.82,142.77,24.58194533]
[1768549017781,26.3818428,142.83,142.77,24.58194533]
[1768549017979,4.95999086,142.82,142.77,24.58194533]
[1768549018178,26.3818428,142.83,142.77,24.58194533]
[1768549018378,4.95999086,142.82,142.77,24.58194533]
[1768549018575,26.3818428,142.83,142.77,24.58194533]
[1768549018778,10.2600516,142.82,142.77,24.58194533]
[1768549019078,26.3818428,142.83,142.77,24.58194533]